fUST/lending_fUST_20260108
["ID","MTS","AMOUNT","RATE_DAILY","PERIOD"]
[400732893,1767803433054,-500.0,0.00013251,2]
[400732894,1767803433064,-500.0,0.00013251,2]
[400732895,1767803433074,-500.0,0.00013251,2]
[400732897,1767803433084,-500.0,0.00013251,2]
[400732899,1767803433094,-500.0,0.00013251,2]
[400732901,1767803433104,-500.0,0.00013251,2]
[400732903,1767803433114,-500.0,0.00013251,2]
[400732905,1767803433123,-500.0,0.00013251,2]
[400732906,1767803433133,-650.0,0.00013251,2]
[400732907,1767803433143,-500.0,0.00013251,2]
[400732908,1767803433153,-500.0,0.00013251,2]
[400732909,1767803433163,-500.0,0.00013251,2]
[400732910,1767803433172,-500.0,0.00013251,2]
[400732911,1767803433182,-500.0,0.00013251,2]
[400732912,1767803433191,-500.0,0.00013251,2]
[400732913,1767803433201,-500.0,0.00013251,2]
[400732914,1767803433211,-231.7827519,0.00013251,2]
[400732915,1767803433220,-500.0,0.00013251,2]
[400732916,1767803433230,-500.0,0.00013251,2]
[400732917,1767803433240,-500.0,0.00013251,2]
[400732918,1767803433250,-500.0,0.00013251,2]
[400732919,1767803433259,-500.0,0.00013251,2]
[400732920,1767803433270,-500.0,0.00013251,2]
[400732921,1767803433281,-500.0,0.00013251,2]
[400732922,1767803433291,-500.0,0.00013251,2]
[400732923,1767803433300,-500.0,0.00013251,2]
[400732924,1767803433311,-500.0,0.00013251,2]
[400732925,1767803433320,-500.0,0.00013251,2]
[400732926,1767803433329,-623.17827519,0.00013251,2]
[400732927,1767803433340,-36020.84789368,0.00013252,2]
[400732928,1767803433350,-205.41447394,0.00013256,2]
[400732929,1767803433360,-500.0,0.00013273,2]
[400732930,1767803433370,-150.76888394,0.00013273,2]
[400732931,1767803433379,-500.0,0.00013273,2]
[400732932,1767803433389,-500.0,0.00013273,2]
[400732933,1767803433398,-500.0,0.00013699,2]
[400732934,1767803433411,-461.69542534,0.00013699,2]
[400732935,1767803433421,-565.28238456,0.00013821,2]
[400732936,1767803433431,-1000.0,0.00013821,2]
[400732937,1767803433442,-487.93456198,0.00014247,2]
[400732938,1767803433452,-168.95,0.00014322,2]
[400732939,1767803433461,-1500.0,0.00014368,2]
[400732940,1767803433471,-420.0,0.00014527,2]
[400732941,1767803433481,-333.75849571,0.00014858,2]
[400732942,1767803433491,-177.0,0.00014913,2]
[400732943,1767803433501,-993.85956644,0.00014915,2]
[400732944,1767803433511,-1041.39198049,0.00014915,2]
[400732945,1767803433521,-1041.39198049,0.00014915,2]
[400732946,1767803433532,-1011.51842375,0.00014915,2]
[400732948,1767803437856,-2000.0,0.00014916,2]
[400732950,1767803437871,-190.07,0.00015118,2]
[400732952,1767803437882,-628.86161548,0.00015464,2]
[400732954,1767803437893,-1871.13838452,0.00015464,2]
[400732956,1767803437903,-250.0,0.00015848,2]
[400732958,1767803437912,-211.19,0.00015914,2]
[400732960,1767803437922,-587.0,0.00015927,2]
[400732962,1767803437932,-3000.0,0.00016012,2]
[400732964,1767803437942,-2667.88957774,0.00016187,2]
[400732966,1767803437951,-259.93772438,0.00016438,2]
[400732969,1767803437960,-3500.0,0.0001656,2]
[400732971,1767803437970,-204.0,0.00016913,2]
[400732973,1767803437980,-502.67735813,0.00017108,2]
[400732974,1767803437989,-500.0,0.00017197,2]
[400732976,1767803437998,-206.58822789,0.00017197,2]
[400732978,1767803438008,-500.0,0.00017197,2]
[400732980,1767803438018,-500.0,0.00017197,2]
[400732982,1767803438029,-500.0,0.00017197,2]
[400732985,1767803438039,-500.0,0.00017197,2]
[400732987,1767803438049,-261.88445837,0.00017334,2]
[400732988,1767803438059,-500.0,0.00017334,2]
[400732991,1767803438069,-500.0,0.00017334,2]
[400732993,1767803438079,-500.0,0.00017334,2]
[400732995,1767803438088,-603.89498635,0.00017334,2]
[400732997,1767803438098,-209.63078805,0.00017334,2]
[400732998,1767803438107,-210.83487892,0.00017334,2]
[400733000,1767803438116,-599.45180267,0.00017334,2]
[400733023,1767803438316,-350.0,0.00017463,2]
[400733025,1767803438326,-500.0,0.00017471,2]
[400733027,1767803438336,-500.0,0.00017471,2]
[400733029,1767803438345,-500.0,0.00017471,2]
[400733031,1767803438355,-500.0,0.00017608,2]
[400733033,1767803438364,-500.0,0.00017745,2]
[400733035,1767803438374,-500.0,0.00017882,2]
[400733037,1767803438384,-500.0,0.00018019,2]
[400733039,1767803438394,-500.0,0.00018156,2]
[400733041,1767803438404,-500.0,0.00018293,2]
[400733043,1767803438414,-318.69407064,0.0001843,2]
[400733045,1767803438423,-302.9394212,0.000189,2]
[400733047,1767803438433,-231.0,0.00018913,2]
[400733049,1767803438443,-2667.88957774,0.00019215,2]
[400733051,1767803438453,-154.28,0.000193,2]
[400733053,1767803438463,-162.02,0.000193,2]
[400733055,1767803438474,-310.18,0.0002,30]
[400733057,1767803438483,-500.0,0.0002,30]
[400733059,1767803438494,-500.0,0.0002,30]
[400733061,1767803438504,-500.0,0.0002,30]
[400733063,1767803438514,-500.0,0.0002,30]
[400733065,1767803438525,-500.0,0.0002,30]
[400733067,1767803438537,-500.0,0.0002,30]
[400733069,1767803438548,-1041.66666667,0.00020811,2]
[400733071,1767803438557,-258.0,0.00020913,2]
[400733073,1767803438567,-28256.54712775,0.00021,2]
[400733075,1767803438578,-1214.93,0.00021,2]
[400733077,1767803438590,-187.3,0.00021254,2]
[400733079,1767803438600,-182.25330539,0.000215,2]
[400733081,1767803438609,-1038.80075693,0.000215,2]
[400733083,1767803438619,-12849.42882741,0.000215,2]
[400733085,1767803438628,-276.4711241,0.00021918,6]
[400733087,1767803438638,-568.10876052,0.0002196,10]
[400733089,1767803438648,-5672.75,0.0002199,10]
[400733091,1767803438658,-73663.33773336,0.00022,2]
[400733093,1767803438668,-171.84386487,0.00022,10]
[400733095,1767803438677,-828.88420571,0.00022,20]
[400733097,1767803438687,-3623.73068922,0.00022,2]
[400733099,1767803438696,-281.67,0.00022,2]
[400733101,1767803438706,-2667.88957774,0.00022244,2]
[400733103,1767803438716,-931.06,0.000223,7]
[400733106,1767803438726,-187.3,0.00022703,2]
[400733108,1767803438736,-285.0,0.00022913,2]
[400733110,1767803438745,-500.0,0.00023138,2]
[400733112,1767803438755,-500.0,0.0002323,2]
[400733114,1767803438764,-500.0,0.00023419,2]
[400733116,1767803438773,-500.0,0.00023663,2]
[400733118,1767803438784,-174.51638883,0.00023982,2]
[400733120,1767803438795,-4181.86749932,0.0002399,2]
[400733122,1767803438807,-500.0,0.00024017,2]
[400733124,1767803438817,-500.0,0.00024021,2]
[400733126,1767803438826,-1214.93,0.000241,14]
[400733128,1767803438837,-6414.10338796,0.00024142,2]
[400733130,1767803438847,-187.3,0.00024152,2]
[400733132,1767803438856,-154.28,0.000242,7]
[400733134,1767803438866,-47932.75593723,0.000242,2]
[400733136,1767803438878,-174.51638883,0.00024386,23]
[400733138,1767803438888,-5000.0,0.00024412,2]
[400733140,1767803438898,-500.0,0.00024454,2]
[400733142,1767803438908,-281.67,0.000245,2]
[400733144,1767803438919,-156724.58563049,0.0002465,2]
[400733146,1767803438930,-513.79712507,0.0002465,2]
[400733148,1767803438939,-500.0,0.00024665,2]
[400733150,1767803438950,-16821.80898001,0.00024774,2]
[400733152,1767803438959,-174.51638883,0.0002479,45]
[400733154,1767803438969,-75199.5996077,0.000249,2]
[400733156,1767803438979,-312.0,0.00024913,2]
[400733158,1767803438989,-931.06,0.00025,7]
[400733160,1767803438998,-174.51638883,0.00025194,66]
[400733162,1767803439008,-250.0,0.00025205,2]
[400733164,1767803439018,-2667.88957774,0.00025272,2]
[400733166,1767803439033,-250.0,0.00025343,2]
[400733168,1767803439044,-500.0,0.00025386,7]
[400733170,1767803439054,-174.51638883,0.00025597,88]
[400733172,1767803439063,-187.3,0.000256,2]
[400733174,1767803439073,-200.0,0.00025617,2]
[400733176,1767803439085,-500.0,0.00025617,2]
[400733178,1767803439095,-1214.93,0.000257,14]
[400733180,1767803439106,-350.0,0.00025753,2]
[400733183,1767803439116,-172.0,0.00025753,17]
[400733185,1767803439127,-208.48941941,0.00025754,2]
[400733187,1767803439137,-500.0,0.00025754,2]
[400733189,1767803439148,-154.28,0.000258,7]
[400733191,1767803439158,-500.0,0.00025891,2]
[400733192,1767803439168,-500.0,0.00025917,7]
[400733195,1767803439179,-2145.0,0.00025946,2]
[400733196,1767803439189,-1365.0,0.00025946,2]
[400733199,1767803439200,-628.0,0.00025946,2]
[400733201,1767803439210,-714.0,0.00025946,2]
[400733203,1767803439221,-417.0,0.00025946,2]
[400733205,1767803439231,-195.223,0.00025946,2]
[400733207,1767803439241,-417.0,0.00025946,2]
[400733209,1767803439250,-500.0,0.00025948,7]
[400733211,1767803439260,-30079.8398431,0.00025983,2]
[400733213,1767803439269,-133963.57783721,0.00026,30]
[400733214,1767803439278,-1041.66666667,0.00026,30]
[400733217,1767803439288,-281.67,0.00026,2]
[400733219,1767803439298,-500.0,0.00026028,2]
[400733221,1767803439307,-151.0,0.000261,16]
[400733223,1767803439316,-2875.33898822,0.000261,7]
[400733225,1767803439326,-500.0,0.00026165,2]
[400733227,1767803439335,-205.13938309,0.00026175,2]
[400733229,1767803439345,-250.0,0.00026175,2]
[400733231,1767803439354,-1500.0,0.00026175,2]
[400733233,1767803439363,-250.0,0.00026175,2]
[400733235,1767803439372,-2487.15318209,0.00026175,2]
[400733237,1767803439381,-1500.0,0.00026175,2]
[400733239,1767803439391,-250.0,0.00026175,2]
[400733240,1767803439400,-1500.0,0.00026175,2]
[400733242,1767803439409,-250.0,0.00026175,2]
[400733244,1767803439418,-1500.0,0.00026175,2]
[400733246,1767803439427,-250.0,0.00026175,2]
[400733248,1767803439437,-1500.0,0.00026175,2]
[400733251,1767803439447,-1500.0,0.00026175,2]
[400733252,1767803439457,-250.0,0.00026175,2]
[400733254,1767803439467,-1500.0,0.00026175,2]
[400733256,1767803439478,-250.0,0.00026175,2]
[400733258,1767803439487,-1500.0,0.00026175,2]
[400733261,1767803439497,-250.0,0.00026175,2]
[400733263,1767803439506,-1500.0,0.00026175,2]
[400733264,1767803439516,-250.0,0.00026175,2]
[400733267,1767803439527,-1500.0,0.00026175,2]
[400733269,1767803439537,-250.0,0.00026175,2]
[400733271,1767803439547,-1500.0,0.00026175,2]
[400733273,1767803439556,-500.0,0.00026175,2]
[400733276,1767803439566,-1500.0,0.00026175,2]
[400733279,1767803439575,-250.0,0.00026175,2]
[400733282,1767803439585,-500.0,0.00026175,2]
[400733285,1767803439595,-1500.0,0.00026175,2]
[400733288,1767803439603,-250.0,0.00026175,2]
[400733290,1767803439612,-250.0,0.00026175,2]
[400733292,1767803439622,-1500.0,0.00026175,2]
[400733294,1767803439631,-500.0,0.00026175,2]
[400733296,1767803439640,-250.0,0.00026175,2]
[400733298,1767803439649,-250.0,0.00026175,2]
[400733300,1767803439659,-500.0,0.00026175,2]
[400733302,1767803439668,-250.0,0.00026175,2]
[400733303,1767803439677,-250.0,0.00026175,2]
[400733306,1767803439687,-250.0,0.00026175,2]
[400733307,1767803439696,-500.0,0.00026175,2]
[400733310,1767803439706,-250.0,0.00026175,2]
[400733312,1767803439716,-500.0,0.00026175,2]
[400733313,1767803439725,-364.53594477,0.00026175,2]
[400733315,1767803439734,-250.0,0.00026175,2]
[400733317,1767803439743,-250.0,0.00026175,2]
[400733319,1767803439752,-250.0,0.00026175,2]
[400733321,1767803439761,-252.94566259,0.00026175,2]
[400733324,1767803439771,-250.0,0.00026175,2]
[400733325,1767803439781,-302.29046048,0.00026175,2]
[400733327,1767803439790,-514.84070869,0.00026175,2]
[400733330,1767803439803,-30000.0,0.00026175,2]
[400733331,1767803439812,-151.0,0.00026175,2]
[400733333,1767803439821,-151.0,0.00026175,2]
[400733336,1767803439830,-151.0,0.00026175,2]
[400733338,1767803439839,-293.66603204,0.00026175,2]
[400733340,1767803439850,-190.18679127,0.00026259,2]
[400733342,1767803439860,-5000.0,0.00026269,2]
[400733343,1767803439870,-931.06,0.000263,7]
[400733345,1767803439879,-450.0,0.00026301,2]
[400733347,1767803439889,-500.0,0.00026302,2]
[400733349,1767803439899,-500.0,0.00026348,7]
[400733352,1767803439909,-500.0,0.00026439,2]
[400733353,1767803439918,-244.434,0.00026487,13]
[400733356,1767803439929,-15039.9199215,0.00026531,2]
[400733358,1767803439939,-168.0,0.00026558,2]
[400733360,1767803439948,-1590.0,0.00026564,2]
[400733362,1767803439957,-233.69733,0.00026576,2]
[400733364,1767803439966,-168.0,0.00026651,2]
[400733366,1767803439976,-545.34351193,0.00026686,2]
[400733368,1767803439985,-449.15,0.00026694,2]
[400733370,1767803439994,-2579.17784983,0.00026723,2]
[400733372,1767803440004,-533.88981491,0.00026723,2]
[400733374,1767803440013,-31110.0,0.00026723,2]
[400733376,1767803440023,-1041.66666667,0.000268,30]
[400733378,1767803440032,-233.8271727,0.00026804,2]
[400733380,1767803440041,-550.0,0.00026849,2]
[400733382,1767803440050,-151.0,0.000269,19]
[400733384,1767803440059,-1214.93,0.000269,14]
[400733386,1767803440069,-339.0,0.00026913,2]
[400733388,1767803440078,-168.0,0.00026965,2]
[400733389,1767803440088,-15039.9199215,0.00026982,2]
[400733392,1767803440097,-952.14039256,0.00026989,2]
[400733393,1767803440106,-500.0,0.00026992,7]
[400733395,1767803440116,-1687.44,0.00027,2]
[400733398,1767803440126,-1315.82792449,0.00027,2]
[400733399,1767803440141,-600.0,0.00027,14]
[400733401,1767803440150,-261657.74966145,0.00027,7]
[400733403,1767803440160,-411.0,0.00027,7]
[400733405,1767803440169,-187.3,0.00027049,2]
[400733407,1767803440179,-1000.0,0.00027123,7]
[400733409,1767803440188,-10362.10129904,0.00027187,2]
[400733413,1767803440210,-588.1543,0.00022,2]
[400733415,1767803440220,-943.12823876,0.00027187,2]
[400733758,1767803444845,-1820.01673261,0.00027187,2]
[400733767,1767803446466,-1914.67365109,0.00027187,2]
[400733768,1767803446476,-281.67,0.000272,2]
[400733769,1767803446485,-168.0,0.00027251,2]
[400733770,1767803446494,-1734.04204612,0.00027267,2]
[400733771,1767803446509,-13305.87787538,0.00027267,2]
[400733772,1767803446518,-2674.60743027,0.00027271,2]
[400733773,1767803446527,-553.64373807,0.00027271,2]
[400733774,1767803446539,-32261.07,0.00027271,2]
[400733775,1767803446548,-22179.3254029,0.00027277,2]
[400733776,1767803446560,-3144.77196316,0.00027277,2]
[400733777,1767803446571,-19795.66239854,0.00027277,2]
[400733778,1767803446580,-151.0,0.00027277,7]
[400733779,1767803446590,-151.0,0.00027277,7]
[400733780,1767803446599,-1248.257541,0.00027277,7]
[400733781,1767803446608,-1248.257541,0.00027277,7]
[400733782,1767803446618,-1248.257541,0.00027277,7]
[400733783,1767803446627,-151.0,0.00027277,7]
[400733784,1767803446637,-1248.257541,0.00027277,7]
[400733785,1767803446646,-151.0,0.00027277,7]
[400733786,1767803446656,-151.0,0.00027277,7]
[400733787,1767803446666,-151.0,0.00027277,7]
[400733788,1767803446675,-151.0,0.00027277,7]
[400733789,1767803446685,-217.09525,0.00027277,7]
[400733790,1767803446693,-151.0,0.00027277,7]
[400733791,1767803446703,-90239.5195292,0.00027287,2]
[400733792,1767803446712,-205.72697898,0.00027297,2]
[400733793,1767803446721,-151.0,0.00027297,7]
[400733794,1767803446731,-151.0,0.00027297,7]
[400733795,1767803446740,-151.0,0.00027297,7]
[400733796,1767803446749,-234.643774,0.00027297,7]
[400733797,1767803446758,-155.076774,0.00027297,7]
[400733798,1767803446767,-151.0,0.00027297,7]
[400733799,1767803446777,-151.0,0.00027297,7]
[400733800,1767803446786,-151.0,0.00027297,7]
[400733801,1767803446796,-151.0,0.00027297,7]
[400733802,1767803446807,-151.0,0.00027297,7]
[400733803,1767803446817,-151.0,0.00027297,7]
[400733804,1767803446826,-151.0,0.00027297,7]
[400733805,1767803446837,-174.074896,0.00027297,7]
[400733806,1767803446847,-151.0,0.00027297,7]
[400733807,1767803446857,-151.0,0.00027297,7]
[400733808,1767803446866,-151.0,0.00027297,7]
[400733809,1767803446877,-151.0,0.00027297,7]
[400733810,1767803446887,-151.0,0.00027297,7]
[400733811,1767803446896,-258.386638,0.00027297,7]
[400733812,1767803446905,-151.0,0.00027297,7]
[400733813,1767803446914,-151.0,0.00027297,7]
[400733814,1767803446923,-151.0,0.00027297,7]
[400733815,1767803446933,-151.0,0.00027297,7]
[400733816,1767803446942,-151.0,0.00027297,7]
[400733817,1767803446952,-151.0,0.00027297,7]
[400733818,1767803446961,-151.0,0.00027297,7]
[400733819,1767803446971,-237.212667,0.00027297,7]
[400733820,1767803446980,-151.0,0.00027297,7]
[400733821,1767803446989,-151.0,0.00027297,7]
[400733822,1767803446999,-151.0,0.00027297,7]
[400733823,1767803447010,-151.0,0.00027297,7]
[400733824,1767803447019,-151.0,0.00027297,7]
[400733825,1767803447029,-151.0,0.00027297,7]
[400733826,1767803447038,-204.454588,0.00027297,7]
[400733827,1767803447048,-151.0,0.00027297,7]
[400733828,1767803447058,-281.0,0.000273,2]
[400733829,1767803447068,-18251.28,0.000273,2]
[400733830,1767803447077,-1041.66666667,0.000273,7]
[400733831,1767803447086,-777.0,0.000273,2]
[400733832,1767803447095,-152.0,0.00027383,3]
[400733833,1767803447105,-152.0,0.00027383,3]
[400733834,1767803447114,-152.0,0.00027383,3]
[400733835,1767803447124,-152.0,0.00027383,3]
[400733836,1767803447133,-152.0,0.00027383,3]
[400733837,1767803447142,-152.0,0.00027383,3]
[400733838,1767803447152,-152.0,0.00027383,3]
[400733839,1767803447161,-152.0,0.00027383,3]
[400733840,1767803447170,-189.80913955,0.00027383,3]
[400733841,1767803447179,-459.12,0.00027397,2]
[400733842,1767803447189,-500.0,0.00027397,2]
[400733843,1767803447199,-488.58553069,0.00027397,2]
[400733844,1767803447208,-500.0,0.00027397,2]
[400733845,1767803447218,-617.55279622,0.00027397,2]
[400733846,1767803447228,-2323.61813807,0.00027397,2]
[400733847,1767803447238,-419.07810872,0.00027397,2]
[400733848,1767803447248,-500.0,0.00027397,2]
[400733849,1767803447257,-500.0,0.00027397,2]
[400733850,1767803447267,-500.0,0.00027397,2]
[400733851,1767803447277,-500.0,0.00027397,2]
[400733852,1767803447289,-533.24336171,0.00027397,2]
[400733853,1767803447299,-500.0,0.00027397,2]
[400733854,1767803447308,-500.0,0.00027397,2]
[400733855,1767803447318,-500.0,0.00027397,2]
[400733856,1767803447328,-285.82690785,0.00027397,2]
[400733857,1767803447339,-330.7847672,0.00027397,2]
[400733858,1767803447349,-418.63105602,0.00027397,2]
[400733859,1767803447359,-500.0,0.00027397,2]
[400733860,1767803447369,-315.17480256,0.00027397,2]
[400733861,1767803447379,-150.28353758,0.00027397,2]
[400733862,1767803447389,-164.96319497,0.00027397,2]
[400733863,1767803447399,-436.62884109,0.00027397,2]
[400733864,1767803447410,-390.16943318,0.00027397,2]
[400733865,1767803447420,-500.0,0.00027397,2]
[400733866,1767803447430,-500.0,0.00027397,2]
[400733867,1767803447440,-500.0,0.00027397,2]
[400733868,1767803447450,-500.0,0.00027397,2]
[400733869,1767803447604,-500.0,0.00027397,2]
[400733870,1767803447615,-500.0,0.00027397,2]
[400733871,1767803447625,-589.47729869,0.00027397,2]
[400733872,1767803447635,-500.0,0.00027397,2]
[400733873,1767803447645,-500.0,0.00027397,2]
[400733874,1767803447655,-631.35384667,0.00027397,2]
[400733875,1767803447665,-500.0,0.00027397,2]
[400733876,1767803447674,-500.0,0.00027397,2]
[400733877,1767803447683,-500.0,0.00027397,2]
[400733878,1767803447692,-500.0,0.00027397,2]
[400733879,1767803447702,-564.56926368,0.00027397,2]
[400733880,1767803447713,-500.0,0.00027397,2]
[400733881,1767803447722,-500.0,0.00027397,2]
[400733882,1767803447731,-246.60117318,0.00027397,2]
[400733883,1767803447740,-500.0,0.00027397,2]
[400733884,1767803447750,-500.0,0.00027397,2]
[400733885,1767803447760,-339.81281698,0.00027397,2]
[400733886,1767803447770,-500.0,0.00027397,2]
[400733887,1767803447781,-320.99194648,0.00027397,2]
[400733888,1767803447790,-500.0,0.00027397,2]
[400733889,1767803447799,-500.0,0.00027397,2]
[400733890,1767803447812,-500.0,0.00027397,2]
[400733891,1767803447822,-536.03994864,0.00027397,2]
[400733892,1767803447831,-500.0,0.00027397,2]
[400733893,1767803447841,-274.78199584,0.00027397,2]
[400733894,1767803447851,-500.0,0.00027397,2]
[400733895,1767803447860,-500.0,0.00027397,2]
[400733896,1767803447870,-411.68091884,0.00027397,2]
[400733897,1767803447881,-508.44214132,0.00027397,2]
[400733898,1767803447891,-502.36418177,0.00027397,2]
[400733899,1767803447900,-482.03771904,0.00027397,2]
[400733900,1767803447910,-500.0,0.00027397,2]
[400733901,1767803447919,-500.0,0.00027397,2]
[400733902,1767803447929,-500.0,0.00027397,2]
[400733903,1767803447939,-500.0,0.00027397,2]
[400733904,1767803447948,-500.0,0.00027397,2]
[400733905,1767803447959,-500.0,0.00027397,2]
[400733906,1767803447968,-500.0,0.00027397,2]
[400733907,1767803447978,-286.56410492,0.00027397,2]
[400733908,1767803447987,-244.48670359,0.00027397,2]
[400733909,1767803447997,-500.0,0.00027397,2]
[400733910,1767803448007,-500.0,0.00027397,2]
[400733911,1767803448017,-500.0,0.00027397,2]
[400733912,1767803448027,-500.0,0.00027397,2]
[400733913,1767803448039,-572.76326727,0.00027397,2]
[400733914,1767803448049,-448.47784493,0.00027397,2]
[400733915,1767803448059,-500.0,0.00027397,2]
[400733916,1767803448069,-500.0,0.00027397,2]
[400733917,1767803448078,-354.03723532,0.00027397,2]
[400733918,1767803448088,-500.0,0.00027397,2]
[400733919,1767803448098,-348.69291317,0.00027397,2]
[400733920,1767803448108,-500.0,0.00027397,2]
[400733921,1767803448117,-506.15978028,0.00027397,2]
[400733922,1767803448127,-500.0,0.00027397,2]
[400733923,1767803448136,-204.4507679,0.00027397,2]
[400733924,1767803448146,-500.0,0.00027397,2]
[400733925,1767803448155,-500.0,0.00027397,2]
[400733926,1767803448165,-500.0,0.00027397,2]
[400733927,1767803448174,-500.0,0.00027397,2]
[400733928,1767803448184,-1000.0,0.00027397,2]
[400733929,1767803448194,-500.0,0.00027397,2]
[400733930,1767803448204,-492.83964034,0.00027397,2]
[400733931,1767803448213,-500.0,0.00027397,2]
[400733932,1767803448223,-472.0779569,0.00027397,2]
[400733933,1767803448232,-500.0,0.00027397,2]
[400733934,1767803448241,-500.0,0.00027397,2]
[400733935,1767803448251,-615.82895727,0.00027397,2]
[400733936,1767803448260,-500.0,0.00027397,2]
[400733937,1767803448269,-500.45684664,0.00027397,2]
[400733938,1767803448279,-500.0,0.00027397,2]
[400733939,1767803448289,-500.0,0.00027397,2]
[400733940,1767803448298,-266.0311333,0.00027397,2]
[400733941,1767803448308,-489.4825677,0.00027397,2]
[400733942,1767803448317,-500.0,0.00027397,2]
[400733943,1767803448327,-500.0,0.00027397,2]
[400733944,1767803448336,-546.87196648,0.00027397,2]
[400733945,1767803448346,-574.83927761,0.00027397,2]
[400733946,1767803448356,-500.0,0.00027397,2]
[400733947,1767803448366,-500.0,0.00027397,2]
[400733948,1767803448376,-500.0,0.00027397,2]
[400733949,1767803448386,-500.0,0.00027397,2]
[400733950,1767803448395,-563.61353423,0.00027397,2]
[400733951,1767803448405,-500.0,0.00027397,2]
[400733952,1767803448414,-285.44153399,0.00027397,2]
[400733953,1767803448424,-500.0,0.00027397,2]
[400733954,1767803448434,-461.56079082,0.00027397,2]
[400733955,1767803448443,-500.0,0.00027397,2]
[400733956,1767803448453,-500.0,0.00027397,2]
[400733957,1767803448463,-500.0,0.00027397,2]
[400733958,1767803448472,-500.0,0.00027397,2]
[400733959,1767803448482,-500.0,0.00027397,2]
[400733960,1767803448491,-500.0,0.00027397,2]
[400733961,1767803448500,-500.0,0.00027397,2]
[400733962,1767803448509,-500.0,0.00027397,2]
[400733963,1767803448518,-500.0,0.00027397,2]
[400733964,1767803448527,-500.0,0.00027397,2]
[400733965,1767803448539,-500.0,0.00027397,2]
[400733966,1767803448548,-500.0,0.00027397,2]
[400733967,1767803448557,-516.13557324,0.00027397,2]
[400733968,1767803448567,-500.0,0.00027397,2]
[400733969,1767803448576,-500.0,0.00027397,2]
[400733970,1767803448585,-500.0,0.00027397,2]
[400733971,1767803448594,-500.0,0.00027397,2]
[400733972,1767803448603,-500.0,0.00027397,2]
[400733973,1767803448612,-500.0,0.00027397,2]
[400733974,1767803448622,-500.0,0.00027397,2]
[400733975,1767803448631,-500.0,0.00027397,2]
[400733976,1767803448640,-500.0,0.00027397,2]
[400733977,1767803448649,-500.0,0.00027397,2]
[400733978,1767803448659,-363.17550109,0.00027397,2]
[400733979,1767803448668,-500.0,0.00027397,2]
[400733980,1767803448677,-500.0,0.00027397,2]
[400733981,1767803448686,-500.0,0.00027397,2]
[400733982,1767803448695,-565.35155134,0.00027397,2]
[400733983,1767803448704,-533.03275713,0.00027397,2]
[400733984,1767803448713,-2731.12,0.00027397,2]
[400733985,1767803448723,-260.76064593,0.00027397,2]
[400733986,1767803448732,-378.27229026,0.00027397,2]
[400733987,1767803448741,-500.0,0.00027397,2]
[400733988,1767803448750,-567.74134329,0.00027397,2]
[400733989,1767803448759,-571.86771589,0.00027397,2]
[400733990,1767803448768,-500.0,0.00027397,2]
[400733991,1767803448777,-500.0,0.00027397,2]
[400733992,1767803448789,-500.0,0.00027397,2]
[400733993,1767803448799,-500.0,0.00027397,2]
[400733994,1767803448810,-538.91545747,0.00027397,2]
[400733995,1767803448820,-500.0,0.00027397,2]
[400733996,1767803448829,-500.0,0.00027397,2]